bitfinex/quotes_ETHUSD_20250909
["timestamp","ask_amount","ask_price","bid_price","bid_amount"]
[1757398533134,2.9789,4342.7,4342.6,7.049]
[1757398533464,2.5154,4342.7,4342.6,7.049]
[1757398533638,0.3073,4342.7,4342.6,9.35176792]
[1757398534161,2.9789,4342.7,4342.6,9.35176792]
[1757398534660,2.9789,4342.7,4342.6,7.048]
[1757398534865,2.9789,4342.7,4342.6,5.30276792]
[1757398535050,2.9789,4342.7,4342.6,9.35076792]
[1757398535248,2.9789,4342.7,4342.6,7.048]
[1757398535632,2.9789,4342.7,4342.6,9.35076792]
[1757398536176,0.7708,4342.7,4342.6,9.35076792]
[1757398536385,2.6716,4343.1,4343.0,2.30255583]
[1757398536677,2.9789,4343.1,4343.0,9.34755583]
[1757398538447,0.7708,4343.1,4343.0,9.34755583]
[1757398538636,2.9789,4343.1,4343.0,9.34755583]
[1757398539263,2.9789,4343.1,4342.5,0.002]
[1757398539264,3.27679,4343.1,4342.5,0.002]
[1757398539464,3.27679,4343.1,4342.6,1.387]
[1757398539678,0.4635,4343.0,4342.6,3.838]
[1757398539827,0.3073,4342.7,4342.6,6.838]
[1757398540027,2.9789,4342.7,4342.6,6.838]
[1757398540257,2.9789,4342.7,4342.6,3.0]
[1757398540474,2.9789,4342.7,4342.6,7.042]
[1757398541262,2.9789,4342.7,4342.6,7.1594]
[1757398541618,3.27679,4342.7,4342.6,7.1594]
[1757398542136,3.27679,4342.7,4342.6,6.1594]
[1757398542326,3.27679,4342.7,4342.6,4.1594]
[1757398542526,2.9789,4342.7,4342.6,4.045]
[1757398542862,2.9789,4342.7,4342.6,4.1594]
[1757398545031,2.9789,4342.7,4342.6,0.1144]
[1757398548165,2.9789,4342.7,4342.5,0.002]
[1757398548358,0.41229,4342.6,4342.5,0.002]
[1757398548871,3.39119,4342.6,4342.5,0.002]
[1757398549084,0.1144,4342.6,4342.5,3.457]
[1757398549386,0.4635,4343.5,4342.6,3.0]
[1757398549589,0.4635,4343.5,4342.6,5.30272319]
[1757398549799,0.4635,4343.5,4342.7,2.30270741]
[1757398550301,1.23,4343.7,4342.6,3.0]
[1757398550445,1.23,4343.7,4343.2,2.30243721]
[1757398550652,1.23,4343.7,4343.3,4.045]
[1757398552310,1.23,4343.7,4343.4,3.0]
[1757398552652,2.9789,4343.5,4342.8,4.043]
[1757398552888,1.23,4343.7,4342.9,3.0]
[1757398553204,1.23,4343.7,4343.4,0.2902]
[1757398553361,1.23,4343.7,4343.5,7.044]
[1757398553995,1.23,4343.7,4343.5,7.3342]
[1757398555205,1.23,4343.7,4343.5,7.044]
[1757398556089,41.17136933,4343.6,4343.5,7.044]
[1757398556478,40.40056933,4343.6,4343.5,7.044]
[1757398556902,42.9757773,4343.6,4343.4,1.767]
[1757398557101,0.4635,4343.5,4342.5,1.769]
[1757398557395,2.6716,4343.4,4342.6,4.04]
[1757398557692,2.6716,4343.4,4342.7,3.0]
[1757398557847,0.3073,4342.7,4342.6,4.04]
[1757398558475,0.3073,4342.7,4342.6,7.04]
[1757398559002,0.7708,4342.7,4342.6,7.04]
[1757398559203,2.26790797,4343.3,4342.7,3.0]
[1757398559204,0.1144,4343.3,4342.7,3.0]
[1757398559404,40.40056933,4343.6,4343.2,0.2902]
[1757398559697,40.40056933,4343.6,4343.3,9.4717]
[1757398559869,40.86406933,4343.6,4343.3,4.044]
[1757398560066,40.40056933,4343.6,4343.3,7.044]
[1757398560292,40.40056933,4343.6,4343.3,4.044]
[1757398560495,40.40056933,4343.6,4343.4,3.0]
[1757398560884,40.40056933,4343.6,4343.4,5.30230109]
[1757398561203,40.40056933,4343.6,4343.4,5.30230923]
[1757398561410,40.40056933,4343.6,4343.5,2.30229077]
[1757398561583,40.40056933,4343.6,4343.5,7.89619077]
[1757398561779,33.65950989,4343.6,4343.5,10.12269077]
[1757398562768,32.11097197,4343.6,4343.5,10.12269077]
[1757398562969,31.90410942,4343.6,4343.5,10.12269077]
[1757398563170,1.23,4344.5,4343.5,10.12269077]
[1757398563171,1.23,4344.5,4344.0,0.792]
[1757398563388,1.23,4344.5,4344.0,41.47632578]
[1757398563389,33.77389963,4344.1,4344.0,41.47632578]
[1757398563636,30.66903012,4344.1,4344.0,43.73074606]
[1757398563974,30.66903012,4344.1,4344.0,41.70722578]
[1757398564170,30.66903012,4344.1,4344.0,43.73074606]
[1757398564370,30.66903012,4344.1,4344.0,41.47632578]
[1757398564886,30.66903012,4344.1,4344.0,38.1308]
[1757398565091,30.66903012,4344.1,4344.0,40.10132578]
[1757398565311,30.66903012,4344.1,4344.0,41.25799815]
[1757398565906,30.66903012,4344.1,4344.0,41.71749815]
[1757398566323,30.66903012,4344.1,4344.0,40.10132578]
[1757398567078,30.66903012,4344.1,4344.0,33.0]
[1757398567391,30.66903012,4344.1,4344.0,39.64082578]
[1757398567868,30.66903012,4344.1,4344.0,3.0]
[1757398567984,33.03813012,4344.1,4344.0,7.052]
[1757398568338,30.66903012,4344.1,4344.0,7.052]
[1757398568564,33.34583012,4344.1,4343.5,7.289]
[1757398568848,2.8337,4344.0,4343.6,4.054]
[1757398568986,0.3077,4343.7,4343.5,1.767]
[1757398569181,2.8337,4343.6,4343.5,1.767]
[1757398569410,3.1414,4343.6,4343.5,5.821]
[1757398569686,3.1414,4343.6,4343.5,5.9354]
[1757398569927,2.6768,4343.6,4343.5,5.9354]
[1757398570085,2.3691,4343.6,4343.5,8.9354]
[1757398570282,3.1414,4343.6,4343.5,1.8814]
[1757398570599,3.1414,4343.6,4343.5,8.9354]
[1757398571324,3.1414,4343.6,4343.5,5.9354]
[1757398571486,3.1414,4343.6,4343.5,5.821]
[1757398571823,3.1414,4343.6,4343.5,8.821]
[1757398572041,3.1414,4343.6,4342.8,0.025]
[1757398572042,5.76922035,4343.6,4342.8,0.025]
[1757398572185,0.1144,4343.2,4342.9,4.053]
[1757398572386,7.52198,4343.6,4343.0,3.0]
[1757398572387,2.8337,4343.5,4343.0,3.0]
[1757398572630,2.8337,4343.4,4343.3,0.1144]
[1757398572945,3.1414,4343.4,4343.3,4.1694]
[1757398574631,3.1414,4343.4,4343.3,4.055]
[1757398576089,2.3691,4343.4,4343.3,7.055]
[1757398576224,2.3691,4343.9,4343.4,3.0]
[1757398576427,31.13363012,4344.1,4343.4,3.0]
[1757398576428,31.13363012,4344.1,4344.0,0.1144]
[1757398576725,33.81043012,4344.1,4344.0,7.1664]
[1757398576928,30.66903012,4344.1,4344.0,7.1664]
[1757398578665,30.66903012,4344.1,4344.0,9.76222578]
[1757398578870,30.66903012,4344.1,4344.0,7.1664]
[1757398579196,30.66903012,4344.1,4344.0,9.46842578]
[1757398579363,30.66903012,4344.1,4344.0,7.1664]
[1757398579564,33.81043012,4344.1,4344.0,7.1664]
[1757398580692,30.66903012,4344.1,4344.0,7.1664]
[1757398582359,30.66903012,4344.1,4344.0,9.76222578]
[1757398582794,30.66903012,4344.1,4344.0,7.4602]
[1757398583001,30.66903012,4344.1,4344.0,7.1664]
[1757398584807,33.34583012,4344.1,4344.0,7.1664]
[1757398585013,30.66903012,4344.1,4344.0,7.1664]
[1757398586103,30.66903012,4344.1,4344.0,9.76222578]
[1757398586481,30.66903012,4344.1,4344.0,10.22172578]
[1757398588917,30.66903012,4344.1,4344.0,11.83789815]
[1757398589121,30.66903012,4344.1,4344.0,41.01562578]
[1757398590716,1.23,4344.5,4344.0,41.01562578]
[1757398590917,1.23,4344.5,4344.4,6.09381382]
[1757398591119,1.23,4344.5,4344.4,42.00121382]
[1757398591325,1.23,4344.5,4344.4,42.73331382]
[1757398592705,0.9991,4344.5,4344.4,42.73331382]
[1757398592905,0.9991,4344.5,4344.4,44.75358612]
[1757398593113,0.9991,4344.5,4344.4,42.73331382]
[1757398593313,0.025,4344.8,4344.4,42.73331382]
[1757398593314,0.025,4344.8,4344.7,2.30165488]
[1757398593621,0.025,4344.8,4344.7,40.23205488]
[1757398593797,0.025,4344.8,4344.7,40.96195488]
[1757398595140,0.025,4344.8,4344.7,41.19475488]
[1757398595290,13.53,4345.1,4345.0,0.792]
[1757398595623,13.2991,4345.1,4345.0,45.63349597]
[1757398595828,13.2991,4345.1,4345.0,45.92799597]
[1757398595984,13.2991,4345.1,4345.0,48.38322779]
[1757398596414,13.2991,4345.1,4345.0,46.36629597]
[1757398597385,2.3369,4346.6,4345.7,3.09312525]
[1757398597591,2.3369,4346.6,4345.7,41.87612525]
[1757398597787,2.3369,4346.6,4345.7,42.60702525]
[1757398598088,2.3369,4346.6,4345.7,42.35702525]
[1757398598280,0.4596,4346.5,4345.7,35.8525]
[1757398598488,3.1174,4345.8,4345.7,38.782]
[1757398598688,3.1174,4345.8,4345.7,41.08312525]
[1757398598882,2.6578,4345.8,4345.7,38.782]
[1757398599318,2.6578,4345.8,4345.7,34.766]
[1757398599517,3.1174,4345.8,4345.7,38.78]
[1757398600033,2.6578,4345.8,4345.7,38.78]
[1757398600731,3.1174,4345.8,4345.7,38.78]
[1757398600936,2.3619,4345.8,4345.7,41.08112525]
[1757398601134,2.6578,4345.8,4345.7,38.78]
[1757398601438,3.1174,4345.8,4345.7,5.778]
[1757398601803,3.43314,4345.8,4345.7,1.766]
[1757398602136,2.3619,4345.8,4345.7,5.3298]
[1757398602285,2.6548,4345.8,4345.7,5.3298]
[1757398602490,3.1128,4345.8,4345.7,5.3298]
[1757398603127,2.6548,4345.8,4345.7,5.3298]
[1757398603295,3.1128,4345.8,4345.7,5.3298]
[1757398603501,3.1138,4345.8,4345.7,5.3298]
[1757398603803,3.42918,4345.8,4345.7,4.013]
[1757398604150,2.6558,4345.8,4345.7,4.013]
[1757398604515,0.026,4345.8,4345.7,4.013]
[1757398604828,0.026,4345.8,4345.7,9.60862525]
[1757398605245,0.026,4345.8,4345.7,37.3075]
[1757398605403,0.026,4345.8,4345.7,37.8583]
[1757398606141,0.026,4345.8,4345.7,38.6503]
[1757398607041,0.026,4345.8,4345.7,10.95142525]
[1757398607240,0.026,4345.8,4345.7,8.6503]
[1757398607648,0.026,4345.8,4345.7,34.2009]
[1757398607796,0.026,4345.8,4345.7,38.6553]
[1757398608641,0.026,4345.8,4345.7,38.2189]
[1757398608843,0.026,4345.8,4345.7,40.95642525]
[1757398609050,0.026,4345.8,4345.7,38.6553]
[1757398609615,0.026,4345.8,4345.7,38.2189]
[1757398610118,3.1138,4345.8,4345.2,1.765]
[1757398610442,0.458,4345.7,4345.3,34.015]
[1757398610657,0.2945,4345.4,4345.3,4.015]
[1757398610955,0.2945,4345.4,4345.3,7.015]
[1757398610956,2.6314,4345.4,4345.3,7.015]
[1757398611559,3.0877,4345.4,4345.3,4.015]
[1757398612035,3.39647,4345.4,4345.3,4.015]
[1757398612959,3.39647,4345.4,4345.3,4.013]
[1757398613559,3.0877,4345.4,4345.3,4.013]
[1757398614368,2.6314,4345.4,4345.3,4.013]
[1757398614539,0.026,4345.8,4345.4,3.0]
[1757398614540,2.3629,4345.8,4345.4,3.0]
[1757398614737,0.2959,4345.5,4345.2,1.765]
[1757398615078,0.2959,4345.5,4345.4,3.0]
[1757398615259,0.2959,4345.5,4345.2,1.765]
[1757398615446,0.2959,4345.5,4345.3,4.012]
[1757398615981,0.2959,4345.5,4345.4,3.0]
[1757398616183,0.2959,4345.5,4345.3,4.012]
[1757398616334,5.09318411,4345.4,4345.3,4.012]
[1757398616532,3.85682899,4345.4,4345.2,1.765]
[1757398616808,0.455,4345.3,4345.2,1.765]
[1757398616965,0.455,4345.3,4344.1,5.518]
[1757398616966,2.30147046,4345.1,4344.4,1.766]
[1757398617136,0.455,4345.3,4344.5,4.011]
[1757398617137,2.30139003,4345.2,4344.5,4.011]
[1757398617337,0.2959,4344.6,4344.5,4.011]
[1757398617532,5.38953619,4344.6,4344.5,4.011]
[1757398617733,2.6328,4344.6,4344.5,4.011]
[1757398618243,3.0878,4344.6,4344.5,4.011]
[1757398618776,5.38950786,4344.6,4344.5,4.011]
[1757398618931,3.0878,4344.6,4344.5,4.011]
[1757398619390,5.38950786,4344.6,4344.5,4.011]
[1757398619741,3.0878,4344.6,4344.5,4.011]
[1757398620937,3.0878,4344.6,4344.4,1.8804]
[1757398620938,5.38950786,4344.6,4344.4,0.1144]
[1757398621279,2.30197279,4344.1,4343.8,0.025]
[1757398621638,3.067,4344.1,4343.8,4.038]
[1757398622082,2.3161,4344.1,4343.8,4.038]
[1757398622962,2.6151,4344.1,4343.8,0.025]
[1757398623275,3.067,4344.1,4343.8,0.025]
[1757398624491,3.067,4344.1,4343.8,4.037]
[1757398625378,3.60388204,4344.1,4343.8,4.037]
[1757398625604,3.067,4344.1,4343.8,4.037]
[1757398626683,2.6151,4344.1,4343.8,4.037]
[1757398626982,2.3161,4344.5,4343.8,4.037]
[1757398627198,2.3161,4344.5,4343.9,3.0]
[1757398627344,2.3161,4344.4,4343.9,3.0]
[1757398627540,0.2955,4344.1,4343.9,3.0]
[1757398627951,2.6116,4344.1,4343.9,3.0]
[1757398628449,2.3161,4344.5,4343.9,3.0]
[1757398628659,2.59325,4344.5,4343.9,3.0]
[1757398628977,0.2971,4344.1,4343.9,3.0]
[1757398629185,2.3161,4344.4,4343.9,3.0]
[1757398629645,2.3161,4344.4,4344.0,0.3112]
[1757398629849,0.3115,4344.1,4344.0,0.002]
[1757398630049,2.30155921,4344.9,4344.0,0.002]
[1757398630050,2.7557,4345.1,4344.0,0.002]
[1757398630345,2.7557,4345.1,4344.0,0.7755]
[1757398630598,2.3161,4345.7,4344.4,3.0]
[1757398630797,0.026,4345.8,4344.6,3.0]
[1757398631087,0.026,4345.8,4345.7,0.1144]
[1757398631287,0.026,4345.8,4345.7,7.1194]
[1757398631813,2.6376,4345.8,4345.7,7.1194]
[1757398631943,2.6376,4345.8,4345.3,1.766]
[1757398631944,3.093,4345.8,4345.3,1.766]
[1757398632150,2.3161,4345.7,4345.5,3.0]
[1757398632977,0.026,4345.8,4345.5,3.0]
[1757398633587,0.026,4345.8,4345.7,0.3092]
[1757398633790,0.026,4345.8,4345.7,7.006]
[1757398633949,0.483,4345.8,4345.7,7.006]
[1757398634148,0.7785,4345.8,4345.7,7.006]
[1757398634453,2.6376,4345.8,4345.7,7.006]
[1757398634648,3.093,4345.8,4345.7,7.006]
[1757398634895,3.093,4345.8,4345.7,3.0]
[1757398635091,2.6376,4345.8,4345.7,3.0]
[1757398635916,4.93867229,4345.8,4345.7,3.0]
[1757398636219,3.82095956,4345.8,4345.3,1.766]
[1757398636436,2.75652525,4345.7,4345.3,4.002]
[1757398636606,2.30135183,4345.3,4345.1,4.004]
[1757398636778,3.067,4345.2,4345.1,4.004]
[1757398636972,5.36839003,4345.2,4345.1,4.004]
[1757398637693,3.067,4345.2,4345.1,4.004]
[1757398638017,5.67509003,4345.2,4345.1,4.004]
[1757398638203,3.3737,4345.2,4344.8,4.0]
[1757398638421,2.30154387,4345.0,4344.8,4.0]
[1757398638714,2.6147,4344.9,4344.8,4.0]
[1757398639436,2.30126747,4345.5,4344.8,4.0]
[1757398639437,2.30138472,4345.3,4344.8,4.0]
[1757398639620,2.3161,4345.2,4344.8,4.0]
[1757398639782,2.3161,4345.1,4344.8,4.0]
[1757398640332,2.30138877,4345.3,4344.8,4.0]
[1757398640530,2.3161,4345.0,4344.8,4.0]
[1757398641134,2.6116,4344.9,4344.8,4.0]
[1757398641929,2.30140063,4345.2,4344.8,4.0]
[1757398642143,2.3161,4345.2,4344.8,4.0]
[1757398642522,2.30139923,4345.2,4344.8,4.0]
[1757398642856,2.3161,4345.1,4344.8,4.0]
[1757398643052,4.6175474,4345.1,4344.8,4.0]
[1757398643258,2.30150731,4345.0,4344.8,4.0]
[1757398643431,2.59704894,4344.9,4344.8,4.0]
[1757398643764,3.1465,4346.2,4345.6,1.383]
[1757398643962,0.10650825,4346.2,4346.1,3.40211346]
[1757398644145,0.10650825,4346.2,4346.1,43.98989269]
[1757398644348,0.10650825,4346.2,4346.1,47.23732485]
[1757398644662,1.23,4347.5,4346.1,47.23732485]
[1757398644663,1.0191546,4347.2,4346.3,0.792]
[1757398644968,1.0191546,4347.2,4347.1,0.3092]
[1757398645265,1.0191546,4347.2,4347.1,39.93634998]
[1757398647137,1.0191546,4347.2,4347.1,40.72834998]
[1757398648326,1.0191546,4347.2,4347.1,35.28504998]
[1757398648559,1.0191546,4347.2,4347.1,39.47304998]
[1757398648769,1.0191546,4347.2,4347.1,39.93734998]
[1757398648978,1.0191546,4347.2,4347.1,40.72934998]
[1757398649264,1.0191546,4347.2,4347.1,41.93713467]
[1757398649463,1.0191546,4347.2,4347.1,43.03373414]
[1757398649826,1e-08,4347.5,4347.4,3.09222542]
[1757398650021,1e-08,4347.5,4347.4,14.60266209]
[1757398650225,1e-08,4347.5,4347.4,44.9955754]
[1757398650472,1e-08,4347.5,4347.4,40.4872422]
[1757398650642,1e-08,4347.5,4347.4,43.07916209]
[1757398651044,1e-08,4347.5,4347.4,38.88616209]
[1757398651382,1e-08,4347.5,4347.4,39.48104998]
[1757398651583,1e-08,4347.5,4347.4,42.2249754]
[1757398651788,1e-08,4347.5,4347.4,43.0169754]
[1757398651987,1e-08,4347.5,4347.4,43.39756209]
[1757398652176,1e-08,4347.5,4347.4,43.96629774]
[1757398653689,1e-08,4347.5,4347.4,43.39756209]
[1757398653887,1e-08,4347.5,4347.4,43.51196209]
[1757398654607,1e-08,4347.9,4347.8,0.792]
[1757398654806,1.43,4348.4,4348.1,6.0918551]
[1757398655013,1.43,4348.4,4348.1,17.14369177]
[1757398655326,1.43,4348.4,4348.1,39.56313694]
[1757398655628,1.43,4348.4,4348.1,44.68784998]
[1757398655900,5.5875,4348.2,4348.1,41.68784998]
[1757398656678,2.46,4348.2,4348.1,44.68784998]
[1757398656998,5.5875,4348.2,4348.1,14.68784998]
[1757398657165,5.5875,4348.2,4348.1,6.17084998]
[1757398657362,5.5875,4348.2,4348.1,1.97484998]
[1757398657561,5.5875,4348.2,4348.1,6.17484998]
[1757398658064,6.51922133,4348.2,4348.1,6.17484998]
[1757398658574,6.51922133,4348.2,4346.8,0.025]
[1757398658778,6.51922133,4348.2,4346.9,31.21544871]
[1757398658979,2.8234,4348.1,4347.1,3.0]
[1757398659167,2.8234,4348.0,4347.3,3.0]
[1757398659503,0.3041,4347.4,4346.8,0.025]
[1757398659802,0.3041,4347.4,4346.9,4.196]
[1757398660101,2.8234,4347.3,4346.9,4.196]
[1757398660302,0.3041,4347.0,4346.9,7.196]
[1757398660469,3.1275,4347.0,4346.9,7.196]
[1757398660669,3.1275,4347.0,4346.9,3.0]
[1757398660903,3.1275,4347.0,4346.9,7.194]
[1757398662206,3.1275,4347.0,4346.8,4.214]
[1757398662366,2.8234,4346.9,4346.8,7.214]
[1757398662779,3.1275,4346.9,4346.8,7.214]
[1757398664375,5.74074,4346.9,4346.8,0.025]
[1757398664665,3.44025,4346.9,4346.8,0.025]
[1757398666039,3.44025,4346.9,4346.8,0.1394]
[1757398666239,3.1275,4346.9,4346.8,0.1394]
[1757398666535,3.1275,4346.9,4346.8,0.025]
[1757398667114,2.6706,4346.9,4346.8,0.025]
[1757398667315,2.461,4348.2,4346.8,0.025]
[1757398667316,4.8275,4348.2,4347.0,3.0]
[1757398667533,4.8275,4348.2,4347.4,2.3002237]
[1757398667728,4.8275,4348.2,4347.5,4.221]
[1757398668043,2.8234,4348.1,4347.6,1.765]
[1757398668236,0.3041,4347.7,4347.6,1.765]
[1757398668402,2.6706,4347.7,4347.6,1.765]
[1757398668604,2.6706,4347.7,4346.8,2.32550412]
[1757398668605,3.39456,4347.7,4346.9,3.0]
[1757398668811,0.57116,4347.7,4346.9,3.0]
[1757398669004,0.57116,4347.7,4346.8,4.245]
[1757398669005,2.8234,4347.6,4346.8,0.025]
[1757398669339,2.30019084,4347.5,4346.8,4.248]
[1757398669544,0.3041,4346.9,4346.8,3.025]
[1757398669730,0.3041,4346.9,4346.8,0.025]
[1757398669932,3.38794315,4346.9,4345.8,0.025]
[1757398670138,3.1275,4346.9,4345.8,0.025]
[1757398670331,2.30074803,4346.5,4345.8,0.025]
[1757398670535,4.224,4346.8,4345.8,0.025]
[1757398670734,2.30080758,4346.3,4346.2,0.20956174]
[1757398671044,2.60490758,4346.3,4346.2,0.20956174]
[1757398671250,5.42830758,4346.3,4346.2,0.20956174]
[1757398671845,6.20121115,4346.3,4346.2,0.20956174]
[1757398672531,10.42121115,4346.3,4346.2,0.20956174]
[1757398673211,2.30086052,4346.2,4345.8,0.025]
[1757398673543,2.30086052,4346.2,4346.1,0.24988368]
[1757398673748,5.42836052,4346.2,4346.1,0.24988368]
[1757398673954,7.1071405,4346.2,4346.1,0.24988368]
[1757398674259,2.30091346,4346.1,4345.8,1e-08]
[1757398674410,3.09301935,4345.9,4345.8,1e-08]
[1757398674777,3.09312525,4345.7,4345.1,0.04]
[1757398674916,9.07312525,4345.7,4345.1,0.04]
[1757398675104,12.20062525,4345.7,4345.1,0.04]
[1757398675620,7.98562525,4345.7,4345.1,0.04]
[1757398675950,12.19862525,4345.7,4345.1,0.04]
[1757398676149,9.49744904,4345.7,4345.1,0.04]
[1757398676353,13.70944904,4345.7,4345.1,0.04]
[1757398676552,13.70844904,4345.7,4345.1,0.04]
[1757398677297,8.70544904,4345.7,4345.1,0.04]
[1757398677574,13.70744904,4345.7,4345.1,0.04]
[1757398679134,13.70244904,4345.7,4345.1,0.04]
[1757398679532,13.70244904,4345.7,4344.0,0.002]
[1757398679533,3.09354894,4344.9,4344.0,0.002]
[1757398679889,9.06254894,4344.9,4344.0,0.002]
[1757398680184,12.19004894,4344.9,4344.0,0.002]
[1757398680835,12.18804894,4344.9,4344.0,0.002]
[1757398681028,12.18804894,4344.9,4344.7,0.002]
[1757398681458,7.98704894,4344.9,4344.7,0.002]
[1757398681651,9.01590082,4344.9,4344.7,0.002]
[1757398681860,12.42290082,4344.9,4344.7,0.002]
[1757398685104,5.16135188,4344.9,4344.7,0.002]
[1757398685416,5.957,4344.9,4344.8,0.3345]
[1757398685757,2.3782,4345.8,4344.8,0.3345]
[1757398685758,4.67930053,4345.8,4344.8,0.3345]
[1757398685961,0.1144,4345.6,4344.8,0.4489]
[1757398686430,0.1144,4345.6,4344.9,0.20948083]
[1757398687267,0.1144,4345.6,4344.8,0.1394]
[1757398687600,0.1144,4345.1,4344.8,0.025]
[1757398687771,4.3084,4345.1,4344.8,0.025]
[1757398688397,0.1144,4345.1,4344.8,0.025]
[1757398688594,4.19,4345.0,4344.8,0.025]
[1757398689259,0.1144,4345.1,4344.8,0.025]
[1757398689661,4.3004,4345.1,4344.8,0.025]
[1757398689882,4.2974,4345.1,4344.8,0.025]
[1757398690083,0.1144,4345.1,4344.8,0.025]
[1757398690280,4.2964,4345.1,4344.8,0.025]
[1757398691020,2.61194894,4344.9,4344.8,0.025]
[1757398691374,2.30160191,4344.8,4344.7,0.002]
[1757398691570,6.48360191,4344.8,4344.7,0.002]
[1757398691775,9.60900191,4344.8,4344.7,0.002]
[1757398692006,11.27277991,4344.8,4344.7,0.002]
[1757398693688,12.06477991,4344.8,4344.7,0.002]
[1757398695590,7.88277991,4344.8,4344.7,0.002]
[1757398695800,12.05377991,4344.8,4344.7,0.002]
[1757398696233,11.26077991,4344.8,4344.7,0.002]
[1757398696523,11.25977991,4344.8,4344.7,0.002]
[1757398697023,7.09077991,4344.8,4344.7,0.002]
[1757398697224,11.25977991,4344.8,4344.7,0.002]
[1757398698396,11.25877991,4344.8,4344.7,0.002]
[1757398698841,3.96537991,4344.8,4344.7,0.002]
[1757398698999,2.30160191,4344.8,4344.7,0.002]
[1757398699200,4.162,4344.8,4344.7,0.002]
[1757398699433,4.162,4344.8,4344.7,0.52166184]
[1757398699841,4.163,4344.8,4344.7,0.52166184]
[1757398701107,4.2774,4344.8,4344.7,0.52166184]
[1757398701545,4.2724,4344.8,4344.7,0.52166184]
[1757398701928,0.1154,4344.8,4344.7,0.52166184]
[1757398702113,0.1154,4344.8,4344.7,0.3115]
[1757398702446,0.001,4344.8,4344.7,0.8272]
[1757398702949,0.001,4344.8,4344.7,0.7767]
[1757398704649,0.001,4344.8,4344.7,0.3115]
[1757398704850,0.001,4344.8,4344.7,0.7767]
[1757398705070,0.001,4344.8,4344.7,0.8272]
[1757398705812,0.025,4345.8,4344.7,34.9732]
[1757398706125,0.025,4345.8,4345.3,1.21579364]
[1757398706511,0.025,4345.8,4345.7,0.3095]
[1757398706956,0.025,4345.8,4345.7,0.7747]
[1757398708320,0.025,4345.8,4345.7,0.3095]
[1757398708523,0.025,4345.8,4345.1,2.98179364]
[1757398708524,3.1504,4345.8,4345.1,1.766]
[1757398708836,5.99660757,4345.8,4345.1,1.766]
[1757398709162,2.30112525,4345.7,4345.1,1.766]
[1757398709334,2.30127527,4345.5,4344.7,0.002]
[1757398709536,5.11620177,4345.6,4344.7,0.002]
[1757398709857,0.3104,4344.8,4344.7,0.002]
[1757398710056,2.815,4345.4,4344.7,0.002]
[1757398710218,5.116286,4345.4,4344.7,0.3115]
[1757398710421,0.3104,4344.8,4344.7,0.002]
[1757398710621,2.87319331,4344.8,4344.7,0.002]
[1757398710817,5.68819331,4344.8,4344.7,0.002]
[1757398711726,9.82519331,4344.8,4344.7,0.002]
[1757398712141,2.30155013,4344.9,4344.7,0.002]
[1757398712344,6.43660191,4344.8,4344.7,0.002]
[1757398712534,9.68100191,4344.8,4344.7,0.002]
[1757398712744,5.08260191,4344.8,4344.7,0.002]
[1757398713243,5.54600191,4344.8,4344.7,0.002]
[1757398713435,6.7442542,4344.8,4344.7,0.002]
[1757398714034,6.2808542,4344.8,4344.7,0.002]
[1757398714250,5.9958542,4344.8,4344.7,0.002]
[1757398715432,6.2808542,4344.8,4344.7,0.002]
[1757398715640,6.7442542,4344.8,4344.7,0.002]
[1757398716046,4.44265229,4344.8,4344.7,0.002]
[1757398716377,6.7442542,4344.8,4344.7,0.002]
[1757398716538,9.67200191,4344.8,4344.7,0.002]
[1757398717745,10.46400191,4344.8,4344.7,0.002]
[1757398719872,3.09365488,4344.7,4344.6,1e-08]
[1757398720076,4.75386771,4344.7,4344.6,1e-08]
[1757398720249,5.50226771,4344.7,4344.6,1e-08]
[1757398720446,7.92426771,4344.7,4344.6,1e-08]
[1757398721187,3.09397279,4344.1,4344.0,1e-08]
[1757398721369,8.97997279,4344.1,4344.0,1e-08]
[1757398721571,9.72837279,4344.1,4344.0,1e-08]
[1757398721753,9.9224,4344.1,4342.5,0.002]
[1757398722080,0.792,4343.5,4342.5,0.002]
[1757398722283,2.3024498,4343.2,4342.5,0.002]
[1757398722494,2.30255583,4343.0,4342.5,0.002]
[1757398722659,6.42160885,4342.9,4342.5,0.002]
[1757398722857,9.66600885,4342.9,4342.5,0.002]
[1757398723108,11.11866258,4342.9,4342.5,0.002]
[1757398723290,3.0947149,4342.7,4342.5,0.002]
[1757398723669,9.6671149,4342.7,4342.5,0.002]
[1757398725089,10.4591149,4342.7,4342.5,0.002]
[1757398725971,10.63361368,4342.7,4342.5,0.002]
[1757398726279,12.07250131,4342.7,4342.5,0.002]
[1757398727555,11.57250131,4342.7,4342.5,0.002]
[1757398728262,3.09498005,4342.2,4342.1,0.04]
[1757398728492,8.97598005,4342.2,4342.1,0.04]
[1757398728796,2.30313917,4341.9,4341.8,0.025]
[1757398728970,7.79773909,4341.9,4341.8,0.025]
[1757398729154,11.04213909,4341.9,4341.8,0.025]
[1757398729658,6.93213909,4341.9,4341.8,0.025]
[1757398729872,2.30313917,4341.9,4341.8,0.321]
[1757398730071,6.41113917,4341.9,4341.8,0.025]
[1757398730605,8.94213917,4341.9,4341.8,0.025]
[1757398730790,10.75309909,4341.9,4341.8,0.025]
[1757398730991,10.28969909,4341.9,4341.8,0.025]